[Event "11th Chennai Open-GM 2019"]
[Site "Chennai"]
[Date "2019.01.24"]
[Round "9"]
[White "Khusenkhojaev, Muhammad"]
[Black "Sahoo, Utkal Ranjan"]
[Result "1/2-1/2"]
[ECO "D56"]
[WhiteElo "2455"]
[BlackElo "2388"]
[Annotator "RC"]
[PlyCount "120"]
[EventDate "2019.01.18"]
[EventType "swiss"]
[EventCountry "IND"]
[SourceTitle "playchess.com"]
[Source "ChessBase"]
[SourceQuality "1"]
[TimeControl "5400+30"]

1. d4 {[%emt 0:04:17]} d5 {[%emt 0:00:00]} 2. c4 {[%emt 0:00:06]} e6 {[%emt 0:00:00]} 3. Nc3 {[%emt 0:00:06]} Nf6 {[%emt 0:00:10]} 4. Bg5 {[%emt 0:00:12]} Be7 {[%emt 0:00:28]} 5. e3 {[%emt 0:00:11]} O-O {[%emt 0:00:59]} 6. Nf3 {[%emt 0:00:16]} h6 {[%emt 0:00:27]} 7. Bh4 {[%emt 0:00:07]} Ne4 {[%emt 0:00:57]} 8. Bxe7 {[%emt 0:00:13]} Qxe7 {[%emt 0:00:02]} 9. Rc1 {[%emt 0:00:12]} Nxc3 {[%emt 0:03:30]} 10. Rxc3 {[%emt 0:00:18]} c6 {[%emt 0:00:14]} 11. Be2 {[%emt 0:01:03]} Nd7 {[%emt 0:00:17]} 12. O-O {[%emt 0:00:13]} dxc4 {[%emt 0:00:12]} 13. Bxc4 {[%emt 0:00:06]} b6 {[%emt 0:00:12]} 14. Qe2 {[%emt 0:05:39]} c5 {[%emt 0:03:47]} 15. Rfc1 {[%emt 0:01:44]} cxd4 {[%emt 0:23:32]} 16. exd4 {[%emt 0:00:42]} Qd6 {[%emt 0:05:54]} 17. Ba6 {[%emt 0:06:49]} Bxa6 {[%emt 0:00:10]} 18. Qxa6 {[%emt 0:00:06]} Nf6 {[%emt 0:03:20]} 19. a3 {[%emt 0:09:25]} Qf4 {[%emt 0:01:46]} 20. h3 {[%emt 0:09:53]} Rfd8 {[%emt 0:23:09]} 21. b4 {[%emt 0:05:01]} Nd5 22. Rc8 Raxc8 {[%emt 0:08:06]} 23. Rxc8 {[%emt 0:00:39]} Rxc8 {[%emt 0:00:00]} 24. Qxc8+ Kh7 25. Qc2+ {[%emt 0:17:04]} g6 {[%emt 0:01:16]} 26. Kf1 {[%emt 0:05:02]} Kg7 {[%emt 0:00:30]} 27. Ke2 {[%emt 0:00:16]} a5 {[%emt 0:01:15]} 28. bxa5 {[%emt 0:01:36]} bxa5 {[%emt 0:00:02]} 29. g3 {[%emt 0:01:12]} Qd6 {[%emt 0:00:46]} 30. Qd3 {[%emt 0:00:39]} Ne7 {[%emt 0:04:07]} 31. Qe3 {[%emt 0:06:36]} Nc6 {[%emt 0:02:15]} 32. Qe4 {[%emt 0:01:53]} Kf8 {[%emt 0:06:50]} 33. a4 {[%emt 0:01:46]} Kg7 {[%emt 0:01:09]} 34. h4 {[%emt 0:02:22]} h5 {[%emt 0:00:19]} 35. Kf1 {[%emt 0:01:01]} Kf8 {[%emt 0:01:46]} 36. Ne5 {[%emt 0:03:27]} Nxd4 {[%emt 0:04:43]} 37. Qa8+ {[%emt 0:00:20]} Kg7 {[%emt 0:00:52]} 38. Qxa5 {[%emt 0:00:05]} Qb8 {[%emt 0:03:23]} 39. Qc5 {[%emt 0:07:15]} Qb1+ {[%emt 0:00:15]} 40. Kg2 {[%emt 0:00:04]} Qe4+ {[%emt 0:00:09]} 41. Kh2 {[%emt 0:02:18]} Kg8 {[%emt 0:01:16]} 42. Qc8+ {[%emt 0:00:24]} Kh7 {[%emt 0:00:34]} 43. Nd7 {[%emt 0:04:03]} Nf3+ {[%emt 0:00:57]} 44. Kh3 {[%emt 0:00:06]} Ng1+ {[%emt 0:00:42]} 45. Kh2 {[%emt 0:00:05]} Nf3+ {[%emt 0:00:04]} 46. Kh3 {[%emt 0:00:02]} Qg4+ {[%emt 0:00:50]} 47. Kg2 {[%emt 0:00:00]} Nxh4+ {[%emt 0:00:16]} 48. Kh2 {[%emt 0:00:05]} Nf3+ {[%emt 0:00:53]} 49. Kg2 {[%emt 0:00:01]} Nh4+ {[%emt 0:00:58]} 50. Kh2 {[%emt 0:00:01]} Nf3+ {[%emt 0:00:34]} 51. Kg2 {[%emt 0:00:01]} Qf5 {[%emt 0:01:02]} 52. Qc3 {[%emt 0:02:20]} Ne1+ {[%emt 0:00:33]} 53. Qxe1 {[%emt 0:02:16]} Qd5+ {[%emt 0:00:01]} 54. Kg1 {[%emt 0:00:17]} Qxd7 {[%emt 0:00:01]} 55. a5 {[%emt 0:00:00]} Qb5 {[%emt 0:00:30]} 56. Qa1 {[%emt 0:00:40]} Qa6 {[%emt 0:00:16]} 57. Qa4 {[%emt 0:00:49]} g5 {[%emt 0:01:25]} 58. Qb4 {[%emt 0:01:34]} Qe2 {[%emt 0:00:26]} 59. Qb7 {[%emt 0:00:13]} Qe1+ {[%emt 0:00:20]} 60. Kg2 {[%emt 0:00:05]} Qxa5 {[%emt 0:00:19]} 1/2-1/2

[Event "11th Chennai Open-GM 2019"]
[Site "Chennai"]
[Date "2019.01.24"]
[Round "9"]
[White "Lugovskoy, Maxim"]
[Black "Pantsulaia, Levan"]
[Result "0-1"]
[ECO "B40"]
[WhiteElo "2445"]
[BlackElo "2597"]
[Annotator "ChessBase"]
[PlyCount "104"]
[EventDate "2019.01.18"]
[EventType "swiss"]
[EventCountry "IND"]
[SourceTitle "playchess.com"]
[Source "ChessBase"]
[SourceQuality "1"]
[TimeControl "5400+30"]

1. e4 {[%emt 0:00:00]} c5 {[%emt 0:05:40]} 2. Nf3 {[%emt 0:00:03]} e6 {[%emt 0:00:08]} 3. c3 {[%emt 0:00:09]} Nf6 {[%emt 0:00:06]} 4. e5 {[%emt 0:00:10]} Nd5 {[%emt 0:00:06]} 5. d4 {[%emt 0:00:23]} cxd4 {[%emt 0:00:06]} 6. cxd4 {[%emt 0:00:03]} b6 {[%emt 0:00:08]} 7. Bc4 {[%emt 0:01:25]} Bb7 {[%emt 0:00:09]} 8. O-O {[%emt 0:00:51]} Qc8 {[%emt 0:00:05]} 9. b3 {[%emt 0:06:47]} Be7 {[%emt 0:04:17]} 10. Ba3 {[%emt 0:05:41]} Qd8 {[%emt 0:18:58]} 11. Bxe7 {[%emt 0:00:30]} Nxe7 {[%emt 0:05:38]} 12. Nc3 {[%emt 0:00:25]} O-O {[%emt 0:00:07]} 13. Rc1 {[%emt 0:02:28]} Nbc6 {[%emt 0:05:53]} 14. d5 {[%emt 0:04:18]} Nb4 {[%emt 0:01:42]} 15. dxe6 {[%emt 0:15:49]} fxe6 {[%emt 0:01:31]} 16. Qd6 {[%emt 0:10:37]} Bxf3 {[%emt 0:17:44]} 17. gxf3 {[%emt 0:02:00]} Nbc6 {[%emt 0:00:55]} 18. Rfd1 {[%emt 0:03:00]} Ng6 {[%emt 0:00:17]} 19. Qxd7 {[%emt 0:20:14]} Qg5+ {[%emt 0:00:11]} 20. Kh1 {[%emt 0:00:11]} Ncxe5 {[%emt 0:00:11]} 21. Qxe6+ {[%emt 0:01:31]} Kh8 {[%emt 0:00:05]} 22. Qh3 {[%emt 0:09:12]} Rxf3 {[%emt 0:04:30]} 23. Qg2 {[%emt 0:00:09]} Qxg2+ {[%emt 0:01:40]} 24. Kxg2 {[%emt 0:00:04]} Nf4+ {[%emt 0:00:06]} 25. Kf1 {[%emt 0:02:29]} Ng4 {[%emt 0:00:45]} 26. Rd2 {[%emt 0:01:57]} Rf8 {[%emt 0:08:56]} 27. Ne4 {[%emt 0:01:51]} Nxh2+ {[%emt 0:03:08]} 28. Kg1 {[%emt 0:00:31]} Rh3 {[%emt 0:00:27]} 29. Ng5 {[%emt 0:00:53]} g6 {[%emt 0:09:17]} 30. Nxh3 {[%emt 0:02:06]} Nf3+ {[%emt 0:00:10]} 31. Kh1 {[%emt 0:00:23]} Nxd2 {[%emt 0:00:06]} 32. Ng5 {[%emt 0:03:14]} Rf5 {[%emt 0:01:51]} 33. Rc2 {[%emt 0:02:41]} Nxc4 {[%emt 0:00:11]} 34. Rxc4 {[%emt 0:00:04]} Rxg5 {[%emt 0:00:08]} 35. Rxf4 {[%emt 0:00:04]} Rf5 {[%emt 0:00:13]} 36. Ra4 {[%emt 0:02:19]} Ra5 {[%emt 0:00:07]} 37. Rd4 {[%emt 0:00:08]} Rxa2 {[%emt 0:00:05]} 38. Kg2 {[%emt 0:00:02]} Kg7 {[%emt 0:00:14]} 39. Rd7+ {[%emt 0:00:07]} Kh6 {[%emt 0:00:06]} 40. b4 {[%emt 0:00:12]} g5 {[%emt 0:00:35]} 41. b5 {[%emt 0:00:05]} Kg6 {[%emt 0:00:12]} 42. Rd5 {[%emt 0:00:16]} h5 {[%emt 0:00:52]} 43. Kf3 {[%emt 0:01:03]} Ra3+ {[%emt 0:00:24]} 44. Kg2 {[%emt 0:00:19]} h4 {[%emt 0:00:18]} 45. f3 {[%emt 0:00:53]} Ra2+ {[%emt 0:00:11]} 46. Kf1 {[%emt 0:01:01]} h3 {[%emt 0:00:33]} 47. Kg1 {[%emt 0:00:03]} Ra3 {[%emt 0:05:09]} 48. Kf2 {[%emt 0:00:20]} h2 {[%emt 0:00:25]} 49. Kg2 {[%emt 0:00:04]} Rxf3 {[%emt 0:00:16]} 50. Kxh2 {[%emt 0:00:04]} Rf5 {[%emt 0:00:13]} 51. Rd7 {[%emt 0:00:14]} Rxb5 {[%emt 0:00:06]} 52. Rxa7 {[%emt 0:00:03]} Kf5 {[%emt 0:00:08]} 0-1

[Event "11th Chennai Open-GM 2019"]
[Site "Chennai"]
[Date "2019.01.24"]
[Round "9"]
[White "Czebe, Attila"]
[Black "Tran, Tuan Minh"]
[Result "1/2-1/2"]
[ECO "A05"]
[WhiteElo "2418"]
[BlackElo "2541"]
[Annotator "ChessBase"]
[PlyCount "100"]
[EventDate "2019.01.18"]
[EventType "swiss"]
[EventCountry "IND"]
[SourceTitle "playchess.com"]
[Source "ChessBase"]
[SourceQuality "1"]
[TimeControl "5400+30"]

1. Nf3 {[%emt 0:00:00]} Nf6 {[%emt 0:06:02]} 2. c4 {[%emt 0:02:13]} b6 {[%emt 0:00:16]} 3. g3 {[%emt 0:05:46]} Bb7 {[%emt 0:00:40]} 4. Bg2 {[%emt 0:00:05]} e6 {[%emt 0:00:43]} 5. O-O {[%emt 0:00:07]} Be7 {[%emt 0:00:05]} 6. d3 {[%emt 0:01:38]} d5 {[%emt 0:00:47]} 7. cxd5 {[%emt 0:00:19]} exd5 {[%emt 0:00:15]} 8. Nd4 {[%emt 0:03:18]} Qd7 {[%emt 0:02:53]} 9. e4 {[%emt 0:06:13]} dxe4 {[%emt 0:12:06]} 10. dxe4 {[%emt 0:01:28]} Bxe4 {[%emt 0:26:47]} 11. Bxe4 {[%emt 0:01:16]} Nxe4 {[%emt 0:00:06]} 12. Re1 {[%emt 0:00:42]} f5 {[%emt 0:05:33]} 13. Nc3 {[%emt 0:00:25]} O-O {[%emt 0:02:57]} 14. Nxe4 {[%emt 0:02:59]} fxe4 {[%emt 0:02:37]} 15. Rxe4 {[%emt 0:03:44]} Rf7 {[%emt 0:06:01]} 16. Bf4 {[%emt 0:31:51]} c5 {[%emt 0:05:36]} 17. Qf3 {[%emt 0:04:35]} Qb7 {[%emt 0:01:42]} 18. Re6 {[%emt 0:00:22]} Qxf3 {[%emt 0:05:33]} 19. Nxf3 {[%emt 0:00:05]} Nd7 {[%emt 0:00:56]} 20. Rd1 {[%emt 0:02:13]} Bf6 {[%emt 0:03:20]} 21. Red6 {[%emt 0:09:33]} Nf8 {[%emt 0:00:24]} 22. Ne5 {[%emt 0:00:30]} Rb7 {[%emt 0:03:28]} 23. b3 {[%emt 0:03:29]} Re8 {[%emt 0:00:13]} 24. Nc4 {[%emt 0:06:03]} Rbe7 {[%emt 0:00:24]} 25. Ne3 {[%emt 0:03:09]} Ng6 {[%emt 0:01:47]} 26. Nd5 {[%emt 0:03:41]} Nxf4 {[%emt 0:01:18]} 27. gxf4 {[%emt 0:01:34]} Re1+ {[%emt 0:05:23]} 28. Rxe1 {[%emt 0:00:01]} Rxe1+ {[%emt 0:00:07]} 29. Kg2 {[%emt 0:00:01]} Re2 {[%emt 0:00:05]} 30. Nxf6+ {[%emt 0:01:47]} gxf6 31. a4 {[%emt 0:00:09]} Rb2 {[%emt 0:05:14]} 32. Rd8+ {[%emt 0:00:16]} Kf7 {[%emt 0:00:05]} 33. Rd7+ {[%emt 0:00:28]} Kg6 {[%emt 0:00:47]} 34. Rxa7 {[%emt 0:02:51]} h5 {[%emt 0:00:44]} 35. a5 {[%emt 0:00:23]} Rxb3 36. Rb7 {[%emt 0:01:45]} b5 {[%emt 0:00:10]} 37. a6 {[%emt 0:00:04]} c4 {[%emt 0:01:04]} 38. a7 {[%emt 0:00:08]} Ra3 {[%emt 0:00:01]} 39. Rxb5 {[%emt 0:00:08]} Rxa7 {[%emt 0:00:02]} 40. Rc5 {[%emt 0:00:05]} Ra4 {[%emt 0:00:03]} 41. h4 {[%emt 0:00:09]} Rb4 42. Kf3 {[%emt 0:03:45]} Rb3+ {[%emt 0:00:46]} 43. Ke4 {[%emt 0:00:32]} Rh3 {[%emt 0:03:00]} 44. f5+ {[%emt 0:00:10]} Kh6 {[%emt 0:00:05]} 45. Rxc4 {[%emt 0:00:07]} Rxh4+ {[%emt 0:00:07]} 46. f4 {[%emt 0:00:02]} Rh1 {[%emt 0:00:27]} 47. Rc7 {[%emt 0:00:53]} Re1+ {[%emt 0:00:27]} 48. Kf3 {[%emt 0:00:05]} Rf1+ {[%emt 0:00:19]} 49. Kg3 {[%emt 0:00:50]} Rg1+ 50. Kf2 Rg7 {[%emt 0:00:32]} 1/2-1/2

[Event "11th Chennai Open-GM 2019"]
[Site "Chennai"]
[Date "2019.01.24"]
[Round "9"]
[White "Muthaiah AL"]
[Black "Maheswaran, P.."]
[Result "1-0"]
[ECO "A45"]
[WhiteElo "2406"]
[BlackElo "2207"]
[Annotator "ChessBase"]
[PlyCount "71"]
[EventDate "2019.01.18"]
[EventType "swiss"]
[EventCountry "IND"]
[SourceTitle "playchess.com"]
[Source "ChessBase"]
[SourceQuality "1"]
[TimeControl "5400+30"]

1. d4 {[%emt 0:00:00]} Nf6 {[%emt 0:00:39]} 2. Bg5 {[%emt 0:00:12]} g6 {[%emt 0:03:11]} 3. Bxf6 {[%emt 0:02:01]} exf6 {[%emt 0:00:09]} 4. e3 {[%emt 0:00:14]} d6 {[%emt 0:02:45]} 5. g3 {[%emt 0:00:12]} f5 {[%emt 0:04:43]} 6. Bg2 {[%emt 0:00:16]} Bg7 {[%emt 0:00:16]} 7. Ne2 {[%emt 0:01:32]} Nd7 {[%emt 0:00:56]} 8. c4 {[%emt 0:01:19]} Nf6 {[%emt 0:06:05]} 9. Nbc3 {[%emt 0:01:05]} c6 {[%emt 0:02:22]} 10. O-O {[%emt 0:03:33]} O-O {[%emt 0:00:21]} 11. b4 {[%emt 0:04:41]} Re8 {[%emt 0:06:42]} 12. b5 {[%emt 0:12:01]} Bd7 {[%emt 0:10:25]} 13. Rb1 {[%emt 0:03:33]} Qc7 {[%emt 0:04:02]} 14. Qd3 {[%emt 0:05:42]} Rab8 {[%emt 0:10:01]} 15. Rfc1 {[%emt 0:03:29]} h5 {[%emt 0:01:31]} 16. h4 {[%emt 0:01:36]} Bh6 {[%emt 0:00:50]} 17. Nf4 {[%emt 0:01:21]} Kg7 {[%emt 0:05:01]} 18. c5 {[%emt 0:10:25]} dxc5 {[%emt 0:19:40]} 19. dxc5 {[%emt 0:01:07]} Qe5 {[%emt 0:02:04]} 20. Qd4 {[%emt 0:09:36]} Qxd4 {[%emt 0:11:56]} 21. exd4 {[%emt 0:00:29]} Bxf4 {[%emt 0:00:40]} 22. gxf4 {[%emt 0:00:01]} Red8 {[%emt 0:05:10]} 23. a4 {[%emt 0:03:13]} Be8 {[%emt 0:01:05]} 24. Rd1 {[%emt 0:00:37]} Rbc8 {[%emt 0:00:47]} 25. a5 {[%emt 0:02:03]} Nd5 {[%emt 0:00:31]} 26. Bxd5 {[%emt 0:02:02]} cxd5 {[%emt 0:00:11]} 27. Re1 {[%emt 0:00:16]} Bd7 {[%emt 0:00:14]} 28. Re3 {[%emt 0:01:50]} Be6 {[%emt 0:00:15]} 29. Ra1 {[%emt 0:00:32]} Kf6 {[%emt 0:00:47]} 30. Kf1 {[%emt 0:02:03]} Rb8 {[%emt 0:00:14]} 31. Ke2 {[%emt 0:00:59]} Ke7 {[%emt 0:00:19]} 32. Kd2 {[%emt 0:00:13]} Kd7 {[%emt 0:00:09]} 33. Kc2 {[%emt 0:02:42]} Rdc8 {[%emt 0:00:37]} 34. Kb3 {[%emt 0:00:26]} Rxc5 {[%emt 0:00:25]} 35. dxc5 {[%emt 0:00:01]} d4+ {[%emt 0:00:11]} 36. Rxe6 {[%emt 0:00:06]} 1-0

[Event "11th Chennai Open-GM 2019"]
[Site "Chennai"]
[Date "2019.01.24"]
[Round "9"]
[White "Padmini, Rout"]
[Black "Stupak, Kirill"]
[Result "1-0"]
[ECO "A05"]
[WhiteElo "2365"]
[BlackElo "2542"]
[Annotator "ChessBase"]
[PlyCount "100"]
[EventDate "2019.01.18"]
[EventType "swiss"]
[EventCountry "IND"]
[SourceTitle "playchess.com"]
[Source "ChessBase"]
[SourceQuality "1"]
[TimeControl "5400+30"]

1. Nf3 {[%emt 0:02:17]} Nf6 {[%emt 0:01:24]} 2. g3 {[%emt 0:00:29]} d5 {[%emt 0:01:00]} 3. Bg2 {[%emt 0:00:13]} c5 {[%emt 0:00:15]} 4. O-O {[%emt 0:00:28]} g6 {[%emt 0:00:13]} 5. c4 {[%emt 0:04:48]} d4 {[%emt 0:00:12]} 6. b4 {[%emt 0:08:19]} cxb4 {[%emt 0:01:15]} 7. d3 {[%emt 0:01:02]} Nc6 {[%emt 0:01:01]} 8. a3 {[%emt 0:01:27]} bxa3 {[%emt 0:02:18]} 9. Bxa3 {[%emt 0:00:15]} Bg7 {[%emt 0:01:35]} 10. Nbd2 {[%emt 0:00:42]} O-O {[%emt 0:00:04]} 11. Qa4 {[%emt 0:04:09]} Qc7 {[%emt 0:01:59]} 12. Rfb1 {[%emt 0:01:11]} Rd8 {[%emt 0:10:52]} 13. Ra2 {[%emt 0:00:52]} Bd7 {[%emt 0:08:38]} 14. Rab2 {[%emt 0:08:11]} Rab8 {[%emt 0:06:07]} 15. Qc2 {[%emt 0:20:12]} h6 {[%emt 0:08:01]} 16. Nb3 {[%emt 0:02:15]} Bc8 {[%emt 0:00:08]} 17. Bc5 {[%emt 0:06:50]} e5 {[%emt 0:06:02]} 18. Nbd2 {[%emt 0:02:08]} b6 {[%emt 0:02:29]} 19. Ba3 {[%emt 0:00:09]} Bd7 {[%emt 0:01:12]} 20. Ne1 {[%emt 0:02:14]} a5 {[%emt 0:07:03]} 21. Qb3 {[%emt 0:04:05]} Be6 {[%emt 0:04:34]} 22. Qd1 {[%emt 0:08:55]} Na7 {[%emt 0:01:12]} 23. Nc2 {[%emt 0:02:11]} Ne8 {[%emt 0:04:52]} 24. Ne4 {[%emt 0:05:19]} Bf8 {[%emt 0:06:26]} 25. Qc1 {[%emt 0:03:05]} g5 {[%emt 0:13:20]} 26. Bxf8 {[%emt 0:05:31]} Kxf8 {[%emt 0:00:01]} 27. h4 {[%emt 0:02:43]} f5 {[%emt 0:00:50]} 28. Nd2 {[%emt 0:00:32]} g4 {[%emt 0:01:06]} 29. f3 {[%emt 0:00:25]} Nf6 {[%emt 0:02:35]} 30. Nb3 {[%emt 0:01:07]} Kg7 {[%emt 0:00:40]} 31. fxg4 {[%emt 0:00:43]} fxg4 {[%emt 0:00:42]} 32. Nxa5 {[%emt 0:00:59]} e4 {[%emt 0:00:10]} 33. Qf4 {[%emt 0:00:32]} Qxf4 {[%emt 0:04:57]} 34. gxf4 {[%emt 0:00:02]} exd3 {[%emt 0:00:30]} 35. exd3 {[%emt 0:00:06]} Nh5 {[%emt 0:00:12]} 36. Rxb6 {[%emt 0:01:37]} Rxb6 {[%emt 0:01:07]} 37. Rxb6 {[%emt 0:00:03]} Bc8 {[%emt 0:00:06]} 38. f5 {[%emt 0:01:33]} Nf6 {[%emt 0:01:03]} 39. Nb7 {[%emt 0:00:56]} Re8 {[%emt 0:02:10]} 40. Nxd4 {[%emt 0:00:20]} Re3 {[%emt 0:00:54]} 41. Nc5 {[%emt 0:00:07]} g3 {[%emt 0:00:16]} 42. Bf3 {[%emt 0:00:51]} Re5 {[%emt 0:00:35]} 43. Ne4 {[%emt 0:00:51]} Ne8 {[%emt 0:00:19]} 44. Kg2 {[%emt 0:00:25]} Kf8 {[%emt 0:00:41]} 45. Kxg3 {[%emt 0:00:26]} Ra5 {[%emt 0:00:23]} 46. Kf4 {[%emt 0:00:24]} Ra3 {[%emt 0:00:08]} 47. Nc5 {[%emt 0:00:17]} Ra5 {[%emt 0:00:09]} 48. Nce6+ {[%emt 0:00:19]} Ke7 {[%emt 0:00:09]} 49. Rb8 {[%emt 0:00:34]} Ra3 {[%emt 0:01:47]} 50. Ra8 {[%emt 0:00:29]} Nd6 {[%emt 0:00:12]} 1-0

[Event "11th Chennai Open-GM 2019"]
[Site "Chennai"]
[Date "2019.01.24"]
[Round "9"]
[White "Ritviz, Parab"]
[Black "Hegde, Ravi Gopal"]
[Result "1/2-1/2"]
[ECO "C72"]
[WhiteElo "2362"]
[BlackElo "2110"]
[Annotator "NA"]
[PlyCount "49"]
[EventDate "2019.01.18"]
[EventType "swiss"]
[EventCountry "IND"]
[SourceTitle "playchess.com"]
[Source "ChessBase"]
[SourceQuality "1"]
[TimeControl "5400+30"]

1. e4 {[%emt 0:10:16]} e5 {[%emt 0:00:00]} 2. Nf3 {[%emt 0:00:05]} Nc6 {[%emt 0:00:00]} 3. Bb5 {[%emt 0:00:06]} a6 {[%emt 0:00:22]} 4. Ba4 {[%emt 0:00:07]} d6 {[%emt 0:00:39]} 5. O-O {[%emt 0:00:11]} g6 {[%emt 0:00:39]} 6. c3 {[%emt 0:00:30]} Bg7 {[%emt 0:00:11]} 7. d4 {[%emt 0:03:17]} Bd7 {[%emt 0:00:09]} 8. Re1 {[%emt 0:00:21]} Nge7 {[%emt 0:01:38]} 9. Be3 {[%emt 0:00:19]} O-O {[%emt 0:00:24]} 10. Nbd2 {[%emt 0:00:30]} Qe8 {[%emt 0:00:30]} 11. Bb3 {[%emt 0:02:04]} Kh8 {[%emt 0:03:57]} 12. h3 {[%emt 0:00:30]} f6 {[%emt 0:00:30]} 13. Nc4 {[%emt 0:00:30]} a5 {[%emt 0:00:30]} 14. a4 {[%emt 0:00:30]} g5 {[%emt 0:00:30]} 15. dxe5 {[%emt 0:00:30]} dxe5 {[%emt 0:00:30]} 16. Bc5 {[%emt 0:00:30]} b6 {[%emt 0:00:30]} 17. Ba3 {[%emt 0:00:30]} Rd8 {[%emt 0:00:30]} 18. Qe2 {[%emt 0:00:30]} g4 {[%emt 0:00:30]} 19. Nh4 {[%emt 0:00:30]} Qh5 {[%emt 0:00:30]} 20. g3 {[%emt 0:00:30]} Qg5 {[%emt 0:00:30]} 21. Ne3 {[%emt 0:00:30]} gxh3 {[%emt 0:00:30]} 22. Kh2 {[%emt 0:00:30]} Bh6 {[%emt 0:00:30]} 23. Rad1 {[%emt 0:00:30]} Qg7 {[%emt 0:00:30]} 24. Nhf5 {[%emt 0:00:30]} Qg6 {[%emt 0:00:30]} 25. Nxh6 {[%emt 0:00:30]} 1/2-1/2

[Event "11th Chennai Open-GM 2019"]
[Site "Chennai"]
[Date "2019.01.24"]
[Round "9"]
[White "Babiy, Olga"]
[Black "Megaranto, Susanto"]
[Result "0-1"]
[ECO "B06"]
[WhiteElo "2275"]
[BlackElo "2530"]
[Annotator "RC"]
[PlyCount "88"]
[EventDate "2019.01.18"]
[EventType "swiss"]
[EventCountry "IND"]
[SourceTitle "playchess.com"]
[Source "ChessBase"]
[SourceQuality "1"]
[TimeControl "5400+30"]

1. e4 {[%emt 0:00:00]} g6 {[%emt 0:00:00]} 2. d4 {[%emt 0:00:00]} Bg7 {[%emt 0:00:00]} 3. Nc3 {[%emt 0:00:00]} c6 {[%emt 0:00:00]} 4. f4 {[%emt 0:00:32]} d5 {[%emt 0:00:45]} 5. e5 {[%emt 0:00:15]} Nh6 {[%emt 0:00:23]} 6. Nf3 {[%emt 0:01:50]} O-O {[%emt 0:00:31]} 7. Be3 {[%emt 0:01:58]} Qb6 {[%emt 0:00:43]} 8. Na4 {[%emt 0:06:29]} Qa5+ {[%emt 0:04:08]} 9. c3 {[%emt 0:00:48]} f6 {[%emt 0:05:37]} 10. Be2 {[%emt 0:04:39]} Bg4 {[%emt 0:01:33]} 11. O-O {[%emt 0:07:42]} Nd7 {[%emt 0:02:02]} 12. b4 {[%emt 0:02:17]} Qc7 {[%emt 0:00:25]} 13. h3 {[%emt 0:13:06]} Nf5 {[%emt 0:10:32]} 14. Bf2 {[%emt 0:02:03]} Bxf3 {[%emt 0:00:14]} 15. Bxf3 {[%emt 0:00:02]} Bh6 {[%emt 0:03:13]} 16. g3 {[%emt 0:09:20]} fxe5 {[%emt 0:06:24]} 17. dxe5 {[%emt 0:09:10]} e6 {[%emt 0:09:53]} 18. h4 {[%emt 0:02:28]} b5 {[%emt 0:01:59]} 19. Nb2 {[%emt 0:01:29]} Nb6 {[%emt 0:06:34]} 20. Qe2 {[%emt 0:04:42]} a5 {[%emt 0:01:32]} 21. a3 {[%emt 0:02:21]} Rf7 {[%emt 0:04:52]} 22. a4 {[%emt 0:08:10]} Nc4 {[%emt 0:05:14]} 23. Nxc4 {[%emt 0:03:49]} bxc4 {[%emt 0:01:27]} 24. Rfb1 {[%emt 0:00:27]} axb4 {[%emt 0:01:13]} 25. Rxb4 {[%emt 0:00:01]} Bf8 {[%emt 0:00:45]} 26. Rb2 {[%emt 0:01:33]} Qa5 {[%emt 0:00:05]} 27. Qd2 {[%emt 0:00:36]} Bc5 {[%emt 0:00:22]} 28. Bxc5 {[%emt 0:00:55]} Qxc5+ {[%emt 0:00:10]} 29. Kh2 {[%emt 0:00:02]} Rfa7 {[%emt 0:02:00]} 30. g4 Nxh4 {[%emt 0:07:21]} 31. Bd1 {[%emt 0:03:04]} g5 {[%emt 0:03:17]} 32. f5 {[%emt 0:00:44]} h6 {[%emt 0:02:18]} 33. Rab1 {[%emt 0:07:49]} exf5 {[%emt 0:01:28]} 34. gxf5 {[%emt 0:00:04]} Nxf5 {[%emt 0:00:41]} 35. Bg4 {[%emt 0:00:31]} Qe3 {[%emt 0:01:57]} 36. Qxe3 {[%emt 0:04:31]} Nxe3 {[%emt 0:00:05]} 37. Be6+ {[%emt 0:00:02]} Kg7 {[%emt 0:04:20]} 38. Rb7+ {[%emt 0:00:39]} Kg6 {[%emt 0:00:39]} 39. Rxa7 {[%emt 0:00:53]} Rxa7 {[%emt 0:00:01]} 40. Rb6 {[%emt 0:00:04]} g4 {[%emt 0:04:43]} 41. Rxc6 {[%emt 0:01:48]} Kg5 {[%emt 0:00:05]} 42. Rd6 {[%emt 0:03:28]} Rxa4 {[%emt 0:01:27]} 43. Bxd5 {[%emt 0:00:02]} Ra2+ {[%emt 0:00:06]} 44. Kg1 {[%emt 0:00:29]} g3 {[%emt 0:00:07]} 0-1